Cogmind - Beta 9.6 @@@ ROGUE MODE // 2020.08.10 @ 13:20:36 Player: Plexion Result: Destroyed by YI-UF0 with YI-UF0's Doublenader Performance ------------- Evolutions (0) 0 Regions Visited (2) 400 Robots Destroyed (20) 100 Value Destroyed (393) 393 Prototype IDs (0) 0 Alien Tech Used (0) 0 Bonus (0) 0 TOTAL SCORE: 893 Bonus ------- None Cogmind --------- Core Integrity 0/250 Matter 260/300 Energy 85/100 System Corruption 0% Temperature Cool (0) Movement Rolling (140) Ox4 Location -10/Mines Parts ------- > --- POWER (1) -------- (None) > --- PROPULSION (2) --- Compact Wheel > --- UTILITY (2) ------ High-capacity Storage Unit High-capacity Storage Unit > --- WEAPON (2) ------- Assault Rifle > --- INVENTORY (20) --- Ion Engine Light Nuclear Core Compact Wheel Compact Wheel Compact Wheel Small Storage Unit Large Storage Unit Large Storage Unit Medium Matter Pod (100) Autogun Grenade Launcher Hammer Peak State ------------ > --- POWER ------------ Ion Engine > --- PROPULSION ------- Wheel Compact Wheel > --- UTILITY ---------- High-capacity Storage Unit High-capacity Storage Unit > --- WEAPON ----------- Autogun Autogun > --- INVENTORY -------- Ion Engine Aluminum Leg Aluminum Leg Compact Wheel Small Storage Unit Large Storage Unit Large Storage Unit Assault Rifle Autogun [Rating: 10] Favorites ----------- Power Ion Engine Engine Ion Engine Propulsion Compact Wheel Leg Aluminum Leg Wheel Compact Wheel Utility High-capacity Storage Unit Storage High-capacity Storage Unit Weapon Autogun Energy Gun Medium Laser Ballistic Gun Autogun Impact Weapon Hammer Build | -11 -10 -10 ------- Run | Scr Mat Min Slots Evolved . | . . . Power . | . . . Propulsion . | . . . Utility . | . . . Weapon . | . . . Parts Attached 21 | 6 14 1 Power 1 | 1 . . Engine 1 | 1 . . Core . | . . . Reactor . | . . . Propulsion 8 | 2 6 . Treads . | . . . Leg 2 | 2 . . Wheel 6 | . 6 . Hover . | . . . Flight . | . . . Utility 3 | 1 2 . Device . | . . . Storage 3 | 1 2 . Processor . | . . . Hackware . | . . . Protection . | . . . Artifact . | . . . Weapon 9 | 2 6 1 Energy Gun 2 | 2 . . Energy Cannon . | . . . Ballistic Gun 5 | . 4 1 Ballistic Cannon . | . . . Launcher . | . . . Special Weapon . | . . . Impact Weapon 2 | . 2 . Slashing Weapon . | . . . Piercing Weapon . | . . . Special Melee Weapon . | . . . Unidentified Prototypes . | . . . Parts Lost 8 | . 4 4 Power 1 | . . 1 Propulsion 3 | . 2 1 Utility . | . . . Weapon 4 | . 2 2 Highest Loss Streak 4 | . 2 4 Average Slot Usage (%) 96 | . 95 98 Engine 14 | . 14 14 Leg 5 | . 7 . Wheel 21 | . 20 28 Storage 25 | . 24 28 Energy Gun 7 | . 8 . Ballistic Gun 19 | . 18 26 Naked Turns . | . . . Heaviest Build 75 | 13 75 75 Greatest Support 32 | 20 32 32 Greatest Overweight (x) 3 | . 3 2 Average Overweight (x) 1 | . 1 2 Largest Inventory Capacity 20 | 6 20 20 Average Capacity 16 | 5 16 20 Most Carried 13 | 4 12 13 Average Carried 8 | 1 8 12 Final Capacity 20 | 6 20 20 Final Carried 12 | 4 12 12 Class Distribution -------------------- 72% | Hauler-Mutant 27% | Mutant Dominant Class ---------------- Hauler-Mutant | -10/Materials Hauler-Mutant | -10/Mines Resources | -11 -10 -10 ----------- Run | Scr Mat Min Matter Collected 730 | 203 513 14 Remotely . | . . . Salvage Created 760 | . 746 14 Parts 34 | . 33 1 Haulers Intercepted 1 | . 1 . Recyclers Shooed 3 | . 3 . Parts Field Recycled . | . . . Retrieved Matter . | . . . Parts Self-Destructed . | . . . Prevented . | . . . Kills | -11 -10 -10 ------- Run | Scr Mat Min Combat Hostiles Destroyed 12 | . 12 . Guns 11 | . 11 . AOE 1 | . 1 . Classes Destroyed 8 | . 7 1 Worker 2 | . 2 . Builder 1 | . 1 . Tunneler 1 | . . 1 Hauler 1 | . 1 . Recycler 2 | . 2 . Watcher 1 | . 1 . Swarmer 3 | . 3 . Grunt 9 | . 9 . Best Kill Streak 5 | . 5 1 Combat Bots Only 4 | . 4 . Max Kills in Single Turn 1 | . 1 1 Gunslinging . | . . . Exploded 1 | . 1 . Melee . | . . . Uniques/NPCs Destroyed . | . . . Combat | -11 -10 -10 -------- Run | Scr Mat Min Damage Taken 956 | . 528 428 Core 251 | . 107 144 Absorbed by Shields . | . . . Core Remaining (%) 100 | 100 . . Volleys Fired 54 | . 43 11 Largest 2 | . 2 2 Hottest 90 | . 90 46 Shots Fired 102 | . 86 16 Gun 102 | . 86 16 Cannon . | . . . Launcher . | . . . Special . | . . . Kinetic 74 | . 58 16 Thermal 14 | . 14 . Explosive . | . . . Electromagnetic 14 | . 14 . Robot Hit Streak 9 | . 9 9 Robot Miss Streak 3 | . 3 2 Penetration Max . | . . . Secondary Targets 2 | . 2 . Max Gunslinging Chain 1 | . 1 . Shots Hit Robots 68 | . 56 12 Core Hits 30 | . 26 4 Critical Hits . | . . . Critical Kills . | . . . Critical Parts Destroyed . | . . . Melee Attacks 5 | . 5 . Impact 5 | . 5 . Slashing . | . . . Piercing . | . . . Sneak Attacks . | . . . Combat Hostiles . | . . . Follow-up Attacks . | . . . Damage Inflicted 1092 | . 884 208 Guns 1019 | . 811 208 Cannons . | . . . Explosions 73 | . 73 . Melee . | . . . Ramming . | . . . Kinetic 807 | . 599 208 Thermal 147 | . 147 . Explosive . | . . . Electromagnetic 138 | . 138 . Impact . | . . . Slashing . | . . . Piercing . | . . . Highest Corruption . | . . . Average Corruption . | . . . Corruption Purged . | . . . Overload Shots . | . . . Overflow Damage . | . . . Projectiles . | . . . Explosions . | . . . Melee . | . . . Knockbacks . | . . . Impact . | . . . Kinetic . | . . . Secondary . | . . . Self-Inflicted Damage 39 | . 39 . Shots 1 | . 1 . Rammed . | . . . Targets Rammed . | . . . Kicked . | . . . Crushed . | . . . Highest Temperature 132 | . 132 12 Average Temperature 38 | . 42 5 Received Heat Transfer 249 | . 243 6 Siege Activations . | . . . Robots Corrupted . | . . . Combat Hostiles . | . . . Parts Fried 1 | . 1 . Impact Corruptions . | . . . Robots Melted . | . . . Combat Hostiles . | . . . Parts Melted 1 | . 1 . Heat Transferred 372 | . 372 . Parts Sabotaged . | . . . Parts Stolen . | . . . Parts Stripped . | . . . Power Chain Reactions 1 | . 1 . Missiles Intercepted . | . . . Alert | -11 -10 -10 ------- Run | Scr Mat Min Peak Influence 222 | . 222 67 Average Influence 97 | . 117 52 Maximum Alert Level 1 | . 1 . Low Security (%) 74 | 100 67 100 Level 1 25 | . 32 . Level 2 . | . . . Level 3 . | . . . Level 4 . | . . . Level 5 . | . . . High Security . | . . . Max Security . | . . . Squads Dispatched 2 | . 2 . Investigation 1 | . 1 . Extermination . | . . . Reinforcement 1 | . 1 . Assault . | . . . Garrison . | . . . Intercept . | . . . Construction Impeded . | . . . Haulers Reinforced . | . . . Stealth | -11 -10 -10 --------- Run | Scr Mat Min Distress Signals 1 | . 1 . Communications Jammed . | . . . Distress Signals . | . . . Times Spotted 25 | . 21 4 Peak Tracking Total 5 | . 5 3 Tactical Retreats 1 | . 1 . Traps | -11 -10 -10 ------- Run | Scr Mat Min Traps Triggered 1 | . 1 . Indirectly . | . . . Trap Hack Attempts . | . . . Triggered . | . . . Disarmed . | . . . Reprogrammed . | . . . Reused . | . . . Traps Extracted . | . . . Installed . | . . . Triggered . | . . . Machines | -11 -10 -10 ---------- Run | Scr Mat Min Machines Disabled . | . . . Max in Single Turn . | . . . Machines Sabotaged . | . . . Garrisons Compromised . | . . . Overloaded Fab Kills . | . . . Fab Network Shutdowns . | . . . Hacking | -11 -10 -10 --------- Run | Scr Mat Min Machines Accessed 3 | . 3 . Terminals 3 | . 3 . Fabricators . | . . . Repair Stations . | . . . Recycling Units . | . . . Scanalyzers . | . . . Garrison Access . | . . . Total Hacks 6 | . 6 . Successful 3 | . 3 . Failed 3 | . 3 . Catastrophic 2 | . 2 . Database Lockouts . | . . . Manual 6 | . 6 . Terminals 6 | . 6 . Fabricators . | . . . Repair Stations . | . . . Recycling Units . | . . . Scanalyzers . | . . . Garrison Access . | . . . Terminal Hacks 3 | . 3 . Branch Access Points 1 | . 1 . Zone Layout 2 | . 2 . Fabricator Hacks . | . . . Repair Station Hacks . | . . . Recycling Unit Hacks . | . . . Scanalyzer . | . . . Garrison Access Hacks . | . . . Unauthorized Hacks . | . . . Terminals . | . . . Fabricators . | . . . Repair Stations . | . . . Recycling Units . | . . . Scanalyzers . | . . . Garrison Access . | . . . Data Cores Recovered . | . . . Used . | . . . Hacking Detections 3 | . 3 . Full Trace Events 1 | . 1 . Feedback Events . | . . . Feedback Blocked . | . . . Robot Schematics Acquired . | . . . Robots Built . | . . . Matter . | . . . Time . | . . . Total Robot Build Rating . | . . . Part Schematics Acquired . | . . . Parts Built . | . . . Matter . | . . . Time . | . . . Total Part Build Rating . | . . . Parts Repaired . | . . . Time . | . . . Parts Recycled . | . . . Recycled Matter . | . . . Retrieved Matter . | . . . Retrieved Components . | . . . Parts Scanalyzed . | . . . Part Schematics Acquired . | . . . Parts Damaged . | . . . Bothacking | -11 -10 -10 ------------ Run | Scr Mat Min Used RIF Installer . | . . . Robots Hacked . | . . . Non-combat . | . . . Combat . | . . . Robot Hacks Applied . | . . . Relay Couplers Released . | . . . Robots Rewired . | . . . Allies Hacked . | . . . Hacks Repelled . | . . . Allies | -11 -10 -10 -------- Run | Scr Mat Min Total Allies . | . . . Largest Group . | . . . Highest-Rated Group . | . . . Highest-Rated Ally . | . . . Total Orders . | . . . Ally Attacks . | . . . Total Damage . | . . . Kills . | . . . Allies Corrupted . | . . . Allies Melted . | . . . Intel | -11 -10 -10 ------- Run | Scr Mat Min Robot Analysis Total . | . . . Derelict Logs Recovered . | . . . Drone Launches . | . . . Drone Recoveries . | . . . Exploration | -11 -10 -10 ------------- Run | Scr Mat Min Turns Passed 757 | 69 582 106 Spaces Moved 468 | 54 348 66 Core 11 | 11 . . Treads . | . . . Legs 124 | 43 81 . Wheels 333 | . 267 66 Hover . | . . . Flight . | . . . Fastest Speed 50 | 50 110 120 Average Speed 115 | 105 115 120 Slowest Speed 210 | 120 210 120 Overloaded Moves . | . . . Propulsion Burnouts . | . . . Robots Hopped . | . . . Cave-ins Triggered . | . . . Exploration Rate (%) 26 | 4 52 24 Regions Visited 2 Branch Regions 1 Pre-discovered Areas . | . . . Known Exits Taken 1 | . 1 . Unknown Exits Taken 1 | 1 . . Scrap Searched . | . . . Spaces Dug 1 | . 1 . Terrain Destroyed 4 | . 4 . Melee 1 | . 1 . Projectile . | . . . AOE 3 | . 3 . Actions | -11 -10 -10 --------- Run | Scr Mat Min Total 586 | 63 443 80 Wait 20 | . 19 1 Move 466 | 53 347 66 Hop . | . . . Pick Up 17 | 4 12 1 Fast Attach 7 | 6 1 . Attach 5 | . 4 1 Detach . | . . . Swap 9 | . 9 . Drop 3 | . 3 . Fire 54 | . 43 11 Melee 5 | . 5 . Ram . | . . . Kick . | . . . Crush . | . . . Escape Stasis . | . . . Rewire . | . . . Trap . | . . . Miscellaneous . | . . . Route ------- -11/Scrapyard -10/Materials (discovered 2 exits: [*Mat] / *Min) -10/Mines History --------- Turn | Location | Event 6 | -11/Scrapyard | Discovered new exit (range 16) 70 | -11/Scrapyard | Entered Materials 158 | -10/Materials | Identified exit to Mines 388 | -10/Materials | Discovered new exit (range 10) 505 | -10/Materials | Build established: Hauler-Mutant 652 | -10/Materials | Entered Mines 714 | -10/Mines | Assisted by bots powering up and referring to "LRC-V3" 741 | -10/Mines | Core integrity fell below 50% 755 | -10/Mines | Core integrity fell below 20% 758 | -10/Mines | Destroyed by YI-UF0 with YI-UF0's Doublenader Last Messages --------------- 00662_ T-07 Excavator destroyed. 00665_ Acquired 14 matter. 00690_ YI-UF0 mumbles something. 00714_ YI-UF0 nonchalantly drops a Grenade Launcher on the ground. 00715_ Acquired Grenade Launcher. 00728_ YI-UF0 mumbles something. 00734_ G-34 Mercenary destroyed. 00736_ YI-UF0: "BWOOM!" 00736_ G-34 Mercenary destroyed. 00737_ YI-UF0: "Whaaaaaaaa!" 00739_ The unstable cave ceiling collapses. 00743_ YI-UF0 mumbles something. 00744_ Autogun destroyed. 00746_ The unstable cave ceiling collapses. 00747_ YI-UF0 mumbles something. 00750_ The unstable cave ceiling collapses. 00756_ Com. Wheel destroyed. 00756_ Ion Engine destroyed. 00756_ Autogun destroyed. 00757_ YI-UF0 mumbles something. Map ----- +----------------------------------------------------+ | ??????????????????????????????????? | | ??????????????????????????????????? | | ??????????????????????????????????? | | ??????????????????????????????????? | | ??????????????????????????????????? | | ??????????????????????????????????? | | ??????????????????????????????????? | | ??????????????????????????????????? | | ??????????????????????????????????? | | ??????????????????????????????????? | | ??????????????????????????????????? | | ??????????????????????????????????? | | ??????????###?????????????????????? | | ?????????? ?????????????????????? | | ??????????# ##????????????????????? | | ?????????? ##???????????????????? | | ?????????? #???????????????????? | | ????????## #???????????????????? | | ???###### ##??????????????????? | | ???# #??????????????????? | | ???# = ???????????????####? | | ??## #??????????????## ## | | ??# ##?????????????# # | | ???## #?????????????# | | ???# #??????????????# | | ????# @ #??????????????# | | ????# #??????????????## | | ????# ########????????### | | ????### ##?????????## | | ??????### #??????????# | | ??????## g ##?????????# | | ?????## #?????????# | | ?????# #????????# | | ?????# #???????# | | ?????# ##??????# | | ?????## ##?????# | | ??????# ##????## | | ??????# ##????## | | ??????# ## ####### | | ??????# ####### | | ??????## #??????## | | ???????#####????????### ######### | | ??????????????????????#####???????? | | ??????????????????????????????????? | | | | | | | | | | | | | +----------------------------------------------------+ Best States ------------- Heat Dissipation 25 Energy Generation 10 Energy Capacity 250 Matter Stores 300 Matter Capacity 300 Sight Range 16 Terrain Scan Density 10 Evasion (%) 40 Item Schematics ----------------- None Robot Schematics ------------------ None Fabricated ------------ Nothing Alien Tech Used ----------------- None Achievements -------------- None Challenges ------------ None Game ------ Seed SwarmTargetingMachine Manual? 0 Play Time 00:07:22 Cumulative 87.3 hours Start 2020.08.10 @ 13:14:03 End 2020.08.10 @ 13:20:36 Sessions 1 Manual Loads 0 Difficulty Rogue Special Mode None Game No. 98 Rogue 11 Adventurer 87 Explorer 0 Win Type - Total 3 Types 2/0/0/1/0/0/0 Lore% 46 Gallery% 60 Achievement% 52 Wizard Run 0 Options --------- ASCII 0 Keyboard 1 Movement Numpad Keybinds 0 Fullscreen 1 Font 18/Smallcaps Map View 76x50 Tactical HUD 1 Map Filters NONE Filters NONE Steam 1 RUN: bea8a7a5-a9af-4e8a-bb75-2e1fc1c241c9